Cogmind - Beta 11.1 @@@ ROGUE MODE // 2022.04.26 @ 13:47:45 Player: QQQQ Result: Self-destructed Performance ------------- Evolutions (3) 1500 Regions Visited (12) 2400 Robots Destroyed (23) 115 Value Destroyed (703) 703 Prototype IDs (39) 780 Alien Tech Used (0) 0 Bonus (600) 600 TOTAL SCORE: 6098 Bonus ------- Aligned with FarCom 300 Met Data Miner 300 Cogmind --------- Core Integrity 504/700 Matter 275/300 Energy 81/100 System Corruption 1% Temperature Warm (141) Movement Hovering (34) Location -6/Proximity Caves Parts ------- > --- POWER (1) -------- (None) > --- PROPULSION (5) --- Aerolev Unit Aerolev Unit Aerolev Unit Aerolev Unit Aerolev Unit > --- UTILITY (5) ------ Improved Heat Sink Large Storage Unit Improved Signal Interpreter Improved Light Armor Plating Makeshift Hacking Suite > --- WEAPON (2) ------- Gatling Laser Heavy Ion Cannon > --- INVENTORY (15) --- Light Nuclear Core Thermal Generator Microactuators Microactuators Transmission Jammer Medium Armor Plating Improved Light Armor Plating Improved Hacking Suite Improved Hacking Suite System Shield Corruption Screen System Restoration Module Gatling Laser Latent Energy Streamer Heavy Mace Peak State ------------ > --- POWER ------------ Light Nuclear Core > --- PROPULSION ------- Aerolev Unit Aerolev Unit Aerolev Unit Aerolev Unit Aerolev Unit > --- UTILITY ---------- Improved Heat Sink Large Storage Unit Improved Signal Interpreter Improved Light Armor Plating Makeshift Hacking Suite > --- WEAPON ----------- Gatling Laser Latent Energy Streamer > --- INVENTORY -------- Light Nuclear Core Thermal Generator Microactuators Microactuators Transmission Jammer Medium Armor Plating Improved Light Armor Plating Improved Hacking Suite Improved Hacking Suite System Shield Corruption Screen System Restoration Module Gatling Laser Heavy Ion Cannon Heavy Mace [Rating: 56] Favorites ----------- Power Deuterium Engine Engine Deuterium Engine Power Core Light Nuclear Core Propulsion Aerolev Unit Leg Carbon-fiber Leg Wheel Wheel Hover Unit Aerolev Unit Utility Improved Heat Sink Device Improved Heat Sink Storage Large Storage Unit Processor Improved Signal Interpreter Hackware Hacking Suite Protection Medium Armor Plating Weapon Particle Gun Energy Gun Particle Gun Energy Cannon Latent Energy Streamer Impact Weapon Heavy Mace Build | -11 -10 -10 -9 -9 -9 -8 -8 -7 -7 -7 -7 -6 ------- Run | Scr Mat Min Mat Min Exi Min Mat Fac Low Low Dat Pro Slots Evolved 6 | . . . 2 . . . 2 2 . . . . Power . | . . . . . . . . . . . . . Propulsion 3 | . . . 1 . . . 1 1 . . . . Utility 3 | . . . 1 . . . 1 1 . . . . Weapon . | . . . . . . . . . . . . . Parts Attached 53 | 6 3 5 5 2 2 . 15 4 2 4 2 3 Power 5 | 1 . 1 . . . . 1 1 . . 1 . Engine 2 | 1 . 1 . . . . . . . . . . Core 3 | . . . . . . . 1 1 . . 1 . Reactor . | . . . . . . . . . . . . . Propulsion 13 | 2 . 2 2 . . . 6 1 . . . . Treads . | . . . . . . . . . . . . . Leg 6 | . . 2 2 . . . 2 . . . . . Wheel 2 | 2 . . . . . . . . . . . . Hover 5 | . . . . . . . 4 1 . . . . Flight . | . . . . . . . . . . . . . Utility 13 | 1 1 2 1 2 . . 3 2 . 1 . . Device 3 | . . 1 1 . . . 1 . . . . . Storage 3 | 1 . . . 1 . . 1 . . . . . Processor 1 | . . . . . . . . 1 . . . . Hackware 2 | . . . . . . . . 1 . 1 . . Protection 4 | . 1 1 . 1 . . 1 . . . . . Artifact . | . . . . . . . . . . . . . Weapon 22 | 2 2 . 2 . 2 . 5 . 2 3 1 3 Energy Gun 15 | 2 2 . 2 . 1 . 4 . . 2 1 1 Energy Cannon 6 | . . . . . 1 . 1 . 1 1 . 2 Ballistic Gun . | . . . . . . . . . . . . . Ballistic Cannon . | . . . . . . . . . . . . . Launcher . | . . . . . . . . . . . . . Special Weapon . | . . . . . . . . . . . . . Impact Weapon 1 | . . . . . . . . . 1 . . . Slashing Weapon . | . . . . . . . . . . . . . Piercing Weapon . | . . . . . . . . . . . . . Special Melee Weapon . | . . . . . . . . . . . . . Unidentified Prototypes 3 | . . . 1 . . . 2 . . . . . Corrupted Parts 1 | . . 1 . . . . . . . . . . System Corruption 1 | . . 1 . . . . . . . . . . Parts Lost 2 | . . . . . . . . . 1 . . 1 Power 1 | . . . . . . . . . . . . 1 Propulsion . | . . . . . . . . . . . . . Utility 1 | . . . . . . . . . 1 . . . Weapon . | . . . . . . . . . . . . . Highest Loss Streak 1 | . . . . . . . . . 1 . . 1 To Critical Strikes . | . . . . . . . . . . . . . Average Slot Usage (%) 97 | . 90 100 100 100 100 100 93 91 99 92 100 100 Engine 7 | . 14 14 11 11 11 11 8 . . . . . Core 2 | . . . . . . . . 7 7 7 7 7 Leg 19 | . . 17 33 33 33 33 30 . . . . . Wheel 2 | . 28 10 . . . . . . . . . . Hover 12 | . . . . . . . 4 38 38 38 38 38 Device 7 | . . . 11 11 11 11 9 7 7 7 7 7 Storage 9 | . 14 14 11 11 11 11 9 7 7 7 7 7 Processor 1 | . . . . . . . . 4 7 7 7 7 Hackware 1 | . . . . . . . . 2 6 . 7 7 Protection 10 | . 7 13 11 11 11 11 13 7 7 7 7 7 Energy Gun 18 | . 25 28 22 22 17 22 15 15 2 15 15 14 Energy Cannon 1 | . . . . . 4 . 2 . 5 . . . Naked Turns . | . . . . . . . . . . . . . Heaviest Build 50 | 11 21 28 29 43 50 43 50 39 40 40 37 41 Greatest Support 56 | 26 26 30 43 43 43 43 56 40 40 40 40 40 Greatest Overweight (x) 1 | . . . . . 1 . 1 . . . . 1 Average Overweight (x) . | . . . . . . . . . . . . . Largest Inventory Capacity 15 | 8 8 8 8 15 15 15 15 15 15 15 15 15 Average Capacity 12 | 7 8 8 8 8 15 15 15 15 15 15 15 15 Most Carried 15 | 6 8 8 8 9 11 11 15 15 15 15 15 15 Average Carried 10 | 3 7 7 7 8 9 11 11 13 15 15 14 14 Final Capacity 15 | 8 8 8 8 15 15 15 15 15 15 15 15 15 Final Carried 15 | 6 8 8 8 9 11 11 10 15 15 15 13 15 Class Distribution -------------------- 100% | Mutant Dominant Class ---------------- Mutant | -10/Materials Mutant | -10/Mines Mutant | -9/Materials Mutant | -9/Mines Mutant | -9/Exiles Mutant | -8/Mines Mutant | -8/Materials Mutant | -7/Factory Mutant | -7/Lower Caves Mutant | -7/Lower Caves Mutant | -7/Data Miner Mutant | -6/Proximity Caves Resources | -11 -10 -10 -9 -9 -9 -8 -8 -7 -7 -7 -7 -6 ----------- Run | Scr Mat Min Mat Min Exi Min Mat Fac Low Low Dat Pro Matter Collected 710 | 256 . 84 50 10 . . 49 . 133 98 . 30 Remotely . | . . . . . . . . . . . . . Salvage Created 857 | . . 97 152 141 . . 184 . 126 157 . . Parts 50 | . . 2 8 18 . . 7 . 2 13 . . Haulers Intercepted . | . . . . . . . . . . . . . Recyclers Shooed . | . . . . . . . . . . . . . Parts Field Recycled . | . . . . . . . . . . . . . Retrieved Matter . | . . . . . . . . . . . . . Parts Self-Destructed 37 | . . . . . . . . . 2 24 . 11 Prevented . | . . . . . . . . . . . . . Kills | -11 -10 -10 -9 -9 -9 -8 -8 -7 -7 -7 -7 -6 ------- Run | Scr Mat Min Mat Min Exi Min Mat Fac Low Low Dat Pro Combat Hostiles Destroyed 22 | . . 2 3 9 . . 2 . 1 5 . . Guns 21 | . . 2 3 9 . . 1 . 1 5 . . AOE 1 | . . . . . . . 1 . . . . . Classes Destroyed 6 | . . 1 1 1 . . 1 . 2 . . . Recycler 1 | . . . . . . . 1 . . . . . Swarmer 12 | . . . . 9 . . . . . 3 . . Grunt 2 | . . 2 . . . . . . . . . . Sentry 5 | . . . 3 . . . 2 . . . . . Programmer 3 | . . . . . . . . . 1 2 . . Decomposer 6 | . . . . . . . . . 6 . . . Best Kill Streak 6 | . . 2 3 6 . . 2 . 1 3 . . Combat Bots Only 6 | . . 2 3 6 . . 1 . 1 3 . . Max Kills in Single Turn 2 | . . 2 1 2 . . 2 . 1 1 . . Gunslinging 1 | . . 1 . 1 . . . . . . . . Exploded 1 | . . . . . . . 1 . . . . . Melee . | . . . . . . . . . . . . . Uniques/NPCs Destroyed . | . . . . . . . . . . . . . Combat | -11 -10 -10 -9 -9 -9 -8 -8 -7 -7 -7 -7 -6 -------- Run | Scr Mat Min Mat Min Exi Min Mat Fac Low Low Dat Pro Damage Taken 1560 | . . 104 208 228 . . 27 115 231 319 . 328 Core 305 | . . 26 14 69 . . . 22 43 106 . 25 Absorbed by Shields . | . . . . . . . . . . . . . Regen/Repaired (Parts) 82 | . . . . . . . 82 . . . . . Core Remaining (%) 92 | 100 . 89 . . . 79 100 . . . . . Volleys Fired 53 | . . 3 9 16 . . 9 1 3 8 . 4 Largest 2 | . . 2 2 2 . . 2 2 2 2 . 2 Hottest 160 | . . 130 121 121 . . 121 160 160 160 . 145 Shots Fired 106 | . . 6 18 32 . . 18 2 6 16 . 8 Gun 101 | . . 6 18 32 . . 17 2 6 16 . 4 Cannon 5 | . . . . . . . 1 . . . . 4 Launcher . | . . . . . . . . . . . . . Special . | . . . . . . . . . . . . . Kinetic . | . . . . . . . . . . . . . Thermal 105 | . . 6 18 32 . . 17 2 6 16 . 8 Explosive . | . . . . . . . . . . . . . Electromagnetic 1 | . . . . . . . 1 . . . . . Robot Hit Streak 10 | . . 6 10 6 . . 6 1 7 5 . . Robot Miss Streak 5 | . . . 3 5 . . 2 4 3 3 . . Penetration Max . | . . . . . . . . . . . . . Secondary Targets 4 | . . 1 . 2 . . . . . 1 . . Max Gunslinging Chain 1 | . . 1 . 1 . . . . . 1 . . Shots Hit Robots 68 | . . 6 11 16 . . 9 2 12 12 . . Core Hits 37 | . . 2 6 9 . . 6 . 3 11 . . Critical Kills . | . . . . . . . . . . . . . Critical Parts Destroyed 3 | . . . . . . . . . 3 . . . Critical Strikes 4 | . . 1 . . . . . . 3 . . . Burn 1 | . . 1 . . . . . . . . . . Smash 3 | . . . . . . . . . 3 . . . Melee Attacks 6 | . . . . . . . . . 6 . . . Impact 6 | . . . . . . . . . 6 . . . Slashing . | . . . . . . . . . . . . . Piercing . | . . . . . . . . . . . . . Sneak Attacks 6 | . . . . . . . . . 6 . . . Combat Hostiles . | . . . . . . . . . . . . . Follow-up Attacks . | . . . . . . . . . . . . . Damage Inflicted 1772 | . . 96 180 268 . . 227 21 736 244 . . Guns 1124 | . . 96 180 268 . . 149 21 166 244 . . Cannons . | . . . . . . . . . . . . . Explosions 78 | . . . . . . . 78 . . . . . Melee 570 | . . . . . . . . . 570 . . . Ramming . | . . . . . . . . . . . . . Kinetic . | . . . . . . . . . . . . . Thermal 1124 | . . 96 180 268 . . 149 21 166 244 . . Explosive . | . . . . . . . . . . . . . Electromagnetic 78 | . . . . . . . 78 . . . . . Impact 570 | . . . . . . . . . 570 . . . Slashing . | . . . . . . . . . . . . . Piercing . | . . . . . . . . . . . . . Highest Corruption 2 | . . 2 . . . . 2 . 1 1 1 1 Average Corruption 1 | . . 1 . . . . 2 . 1 1 1 1 Corruption Purged . | . . . . . . . . . . . . . Corruption Blocked . | . . . . . . . . . . . . . Effects 6 | . . 1 . . . . 2 . 2 1 . . Message Errors 2 | . . . . . . . 1 . 1 . . . Matter Fused 2 | . . 1 . . . . . . 1 . . . Data Loss (minor) 1 | . . . . . . . . . . 1 . . Misfires 1 | . . . . . . . 1 . . . . . Overload Shots . | . . . . . . . . . . . . . Overflow Damage 557 | . . . . . . . . . 557 . . . Projectiles . | . . . . . . . . . . . . . Explosions . | . . . . . . . . . . . . . Melee 557 | . . . . . . . . . 557 . . . Knockbacks . | . . . . . . . . . . . . . Impact . | . . . . . . . . . . . . . Kinetic . | . . . . . . . . . . . . . Secondary . | . . . . . . . . . . . . . Self-Inflicted Damage . | . . . . . . . . . . . . . Shots . | . . . . . . . . . . . . . Rammed . | . . . . . . . . . . . . . Targets Rammed . | . . . . . . . . . . . . . Kicked . | . . . . . . . . . . . . . Crushed . | . . . . . . . . . . . . . Highest Temperature 291 | . . 291 234 216 . . 48 74 137 217 . 179 Average Temperature 88 | . . 146 101 99 . . 17 40 62 83 . 82 Received Heat Transfer 411 | . . 39 90 . . . 9 30 51 . . 192 Siege Activations . | . . . . . . . . . . . . . Robots Corrupted . | . . . . . . . . . . . . . Combat Hostiles . | . . . . . . . . . . . . . Parts Fried 3 | . . . . . . . . . 3 . . . Impact Corruptions 20 | . . . . . . . . . 20 . . . Robots Melted . | . . . . . . . . . . . . . Combat Hostiles . | . . . . . . . . . . . . . Parts Melted 5 | . . . 1 1 . . 1 . 1 1 . . Heat Transferred 2515 | . . 296 407 629 . . 333 50 300 500 . . Parts Sabotaged . | . . . . . . . . . . . . . Parts Stolen . | . . . . . . . . . . . . . Parts Stripped . | . . . . . . . . . . . . . Power Chain Reactions . | . . . . . . . . . . . . . Missiles Intercepted . | . . . . . . . . . . . . . Latent Energy Used 109 | . . . . . . . 109 . . . . . LE Corruption 2 | . . . . . . . 2 . . . . . Alert | -11 -10 -10 -9 -9 -9 -8 -8 -7 -7 -7 -7 -6 ------- Run | Scr Mat Min Mat Min Exi Min Mat Fac Low Low Dat Pro Peak Influence 281 | . 7 52 171 281 . . 196 88 . . . . Initial 66 | . . 2 20 66 . . . 13 . . . . Average 69 | . 5 34 69 188 . . 92 20 . . . . Maximum Alert Level 1 | . . . . 1 . . . . . . . . Low Security (%) 91 | 100 100 100 100 45 . 100 100 100 . . . . Level 1 8 | . . . . 54 . . . . . . . . Level 2 . | . . . . . . . . . . . . . Level 3 . | . . . . . . . . . . . . . Level 4 . | . . . . . . . . . . . . . Level 5 . | . . . . . . . . . . . . . High Security . | . . . . . . . . . . . . . Max Security . | . . . . . . . . . . . . . Squads Dispatched 5 | . . . 1 . . . 2 2 . . . . Investigation 2 | . . . . . . . 1 1 . . . . Extermination 1 | . . . . . . . . 1 . . . . Reinforcement 2 | . . . 1 . . . 1 . . . . . Assault . | . . . . . . . . . . . . . Garrison . | . . . . . . . . . . . . . Intercept . | . . . . . . . . . . . . . Searches Triggered . | . . . . . . . . . . . . . Construction Impeded . | . . . . . . . . . . . . . Haulers Reinforced . | . . . . . . . . . . . . . Active Scanning Responses . | . . . . . . . . . . . . . Cargo Convoy Interrupts . | . . . . . . . . . . . . . Stealth | -11 -10 -10 -9 -9 -9 -8 -8 -7 -7 -7 -7 -6 --------- Run | Scr Mat Min Mat Min Exi Min Mat Fac Low Low Dat Pro Distress Signals 4 | . . . . . . . 4 . . . . . Communications Jammed . | . . . . . . . . . . . . . Distress Signals . | . . . . . . . . . . . . . Times Spotted 56 | . . 2 4 11 . . 7 4 13 9 . 6 Peak Tracking Total 7 | . . 2 3 7 . . 3 4 6 4 . 6 Tactical Retreats 6 | . . . . 1 . . 2 . 3 . . . Traps | -11 -10 -10 -9 -9 -9 -8 -8 -7 -7 -7 -7 -6 ------- Run | Scr Mat Min Mat Min Exi Min Mat Fac Low Low Dat Pro Traps Triggered 1 | . . 1 . . . . . . . . . . Indirectly . | . . . . . . . . . . . . . Trap Hack Attempts . | . . . . . . . . . . . . . Triggered . | . . . . . . . . . . . . . Disarmed . | . . . . . . . . . . . . . Reprogrammed . | . . . . . . . . . . . . . Reused . | . . . . . . . . . . . . . Traps Extracted . | . . . . . . . . . . . . . Installed . | . . . . . . . . . . . . . Triggered . | . . . . . . . . . . . . . Machines | -11 -10 -10 -9 -9 -9 -8 -8 -7 -7 -7 -7 -6 ---------- Run | Scr Mat Min Mat Min Exi Min Mat Fac Low Low Dat Pro Machines Disabled 4 | . . . 1 . . . 3 . . . . . Max in Single Turn 3 | . . . 1 . . . 3 . . . . . Machines Sabotaged . | . . . . . . . . . . . . . Garrisons Compromised . | . . . . . . . . . . . . . Overloaded Fab Kills . | . . . . . . . . . . . . . Hacking | -11 -10 -10 -9 -9 -9 -8 -8 -7 -7 -7 -7 -6 --------- Run | Scr Mat Min Mat Min Exi Min Mat Fac Low Low Dat Pro Machines Accessed 17 | . 1 1 4 . 2 . 4 2 . . 3 . Terminals 10 | . 1 . 4 . . . 3 2 . . . . Fabricators . | . . . . . . . . . . . . . Repair Stations 1 | . . . . . . . 1 . . . . . Recycling Units . | . . . . . . . . . . . . . Scanalyzers . | . . . . . . . . . . . . . Garrison Access . | . . . . . . . . . . . . . Total Hacks 54 | . 3 1 8 . 2 . 11 4 . . 25 . Successful 36 | . 1 1 3 . 2 . 3 1 . . 25 . Failed 18 | . 2 . 5 . . . 8 3 . . . . Catastrophic 5 | . . . 1 . . . 3 1 . . . . Database Lockouts . | . . . . . . . . . . . . . Manual 23 | . 3 . 7 . 1 . 9 3 . . . . Terminals 24 | . 3 . 8 . . . 9 4 . . . . Fabricators . | . . . . . . . . . . . . . Repair Stations 2 | . . . . . . . 2 . . . . . Recycling Units . | . . . . . . . . . . . . . Scanalyzers . | . . . . . . . . . . . . . Garrison Access . | . . . . . . . . . . . . . Terminal Hacks 34 | . 1 1 3 . 2 . 1 1 . . 25 . Record 7 | . . . . . 1 . . . . . 6 . Part Schematic 11 | . 1 . . . . . . . . . 10 . Robot Schematic 6 | . . . . . . . . . . . 6 . Prototype ID Bank 4 | . . . 1 . . . . . . . 3 . Open Door 1 | . . 1 . . . . . . . . . . Open DSF 1 | . . . . . . . . 1 . . . . Branch Access Points 2 | . . . 1 . . . 1 . . . . . Recall Reinforcements 1 | . . . 1 . . . . . . . . . EX-Prototype ID Bank 1 | . . . . . 1 . . . . . . . Fabricator Hacks . | . . . . . . . . . . . . . Repair Station Hacks 2 | . . . . . . . 2 . . . . . Scan Component 1 | . . . . . . . 1 . . . . . Repair 1 | . . . . . . . 1 . . . . . Recycling Unit Hacks . | . . . . . . . . . . . . . Scanalyzer . | . . . . . . . . . . . . . Garrison Access Hacks . | . . . . . . . . . . . . . Unauthorized Hacks . | . . . . . . . . . . . . . Terminals . | . . . . . . . . . . . . . Fabricators . | . . . . . . . . . . . . . Repair Stations . | . . . . . . . . . . . . . Recycling Units . | . . . . . . . . . . . . . Scanalyzers . | . . . . . . . . . . . . . Garrison Access . | . . . . . . . . . . . . . Data Cores Recovered . | . . . . . . . . . . . . . Used . | . . . . . . . . . . . . . Hacking Detections 10 | . 1 . 4 . . . 4 1 . . . . Full Trace Events 3 | . . . 1 . . . 1 1 . . . . Feedback Events . | . . . . . . . . . . . . . Feedback Blocked . | . . . . . . . . . . . . . Robot Schematics Acquired 6 | . . . . . . . . . . . 6 . Robots Built . | . . . . . . . . . . . . . Authchips . | . . . . . . . . . . . . . Time . | . . . . . . . . . . . . . Total Robot Build Rating . | . . . . . . . . . . . . . Part Schematics Acquired 11 | . 1 . . . . . . . . . 10 . Parts Built . | . . . . . . . . . . . . . Authchips . | . . . . . . . . . . . . . Time . | . . . . . . . . . . . . . Total Part Build Rating . | . . . . . . . . . . . . . Parts Repaired 1 | . . . . . . . 1 . . . . . Time 38 | . . . . . . . 38 . . . . . Parts Recycled . | . . . . . . . . . . . . . Recycled Matter . | . . . . . . . . . . . . . Retrieved Matter . | . . . . . . . . . . . . . Retrieved Components . | . . . . . . . . . . . . . Parts Scanalyzed . | . . . . . . . . . . . . . Part Schematics Acquired . | . . . . . . . . . . . . . Parts Damaged . | . . . . . . . . . . . . . Bothacking | -11 -10 -10 -9 -9 -9 -8 -8 -7 -7 -7 -7 -6 ------------ Run | Scr Mat Min Mat Min Exi Min Mat Fac Low Low Dat Pro Used RIF Installer . | . . . . . . . . . . . . . Robots Hacked . | . . . . . . . . . . . . . Non-combat . | . . . . . . . . . . . . . Combat . | . . . . . . . . . . . . . Robot Hacks Applied . | . . . . . . . . . . . . . Relay Couplers Released . | . . . . . . . . . . . . . Fabnet Peak Effective % . | . . . . . . . . . . . . . Robots Rewired . | . . . . . . . . . . . . . Allies Hacked . | . . . . . . . . . . . . . Hacks Repelled . | . . . . . . . . . . . . . Allies | -11 -10 -10 -9 -9 -9 -8 -8 -7 -7 -7 -7 -6 -------- Run | Scr Mat Min Mat Min Exi Min Mat Fac Low Low Dat Pro Total Allies 1 | . . . . . . . . . . . . 1 Largest Group 1 | . . . . . . . . . . . . 1 Highest-Rated Group 96 | . . . . . . . . . . . . 96 Highest-Rated Ally 96 | . . . . . . . . . . . . 96 Total Orders . | . . . . . . . . . . . . . Ally Attacks 12 | . . . . . . . . . . . . 12 Total Damage 275 | . . . . . . . . . . . . 275 Kills 3 | . . . . . . . . . . . . 3 Allies Corrupted . | . . . . . . . . . . . . . Allies Melted 1 | . . . . . . . . . . . . 1 Intel | -11 -10 -10 -9 -9 -9 -8 -8 -7 -7 -7 -7 -6 ------- Run | Scr Mat Min Mat Min Exi Min Mat Fac Low Low Dat Pro Robot Analysis Total . | . . . . . . . . . . . . . Derelict Logs Recovered 5 | . . . . . . . . . 1 2 . 2 Drone Launches . | . . . . . . . . . . . . . Drone Recoveries . | . . . . . . . . . . . . . Exploration | -11 -10 -10 -9 -9 -9 -8 -8 -7 -7 -7 -7 -6 ------------- Run | Scr Mat Min Mat Min Exi Min Mat Fac Low Low Dat Pro Turns Passed 2638 | 54 118 295 227 271 346 90 458 293 190 145 38 113 Spaces Moved 3005 | 45 121 240 146 177 235 71 267 593 463 285 101 261 Core 1 | 1 . . . . . . . . . . . . Treads . | . . . . . . . . . . . . . Legs 1007 | . . 150 146 177 235 71 228 . . . . . Wheels 255 | 44 121 90 . . . . . . . . . . Hover 1742 | . . . . . . . 39 593 463 285 101 261 Flight . | . . . . . . . . . . . . . Fastest Speed 34 | 50 90 90 120 120 120 120 98 34 34 34 34 34 Average Speed 70 | 87 90 108 120 120 140 120 116 34 34 34 34 34 Slowest Speed 190 | 90 90 120 120 120 190 120 120 34 34 34 34 94 Overloaded Moves . | . . . . . . . . . . . . . Propulsion Burnouts . | . . . . . . . . . . . . . Robots Hopped . | . . . . . . . . . . . . . Cave-ins Triggered . | . . . . . . . . . . . . . Exploration Rate (%) 36 | 3 19 52 18 38 60 21 29 14 62 52 73 36 Regions Visited 12 Branch Regions 8 Pre-discovered Areas 3 | . . . . . 1 . . . 1 . 1 . Known Exits Taken 5 | . . . 1 . . . . 1 1 1 1 . Unknown Exits Taken 7 | 1 1 1 . 1 1 1 1 . . . . . Scrap Searched 11 | . . . . 2 . . . . 3 3 . 3 Spaces Dug . | . . . . . . . . . . . . . Terrain Destroyed 45 | . . . . . . . 45 . . . . . Melee . | . . . . . . . . . . . . . Projectile . | . . . . . . . . . . . . . AOE 45 | . . . . . . . 45 . . . . . Terrain Rammed . | . . . . . . . . . . . . . Walls Destroyed . | . . . . . . . . . . . . . Machines Disabled . | . . . . . . . . . . . . . Actions | -11 -10 -10 -9 -9 -9 -8 -8 -7 -7 -7 -7 -6 --------- Run | Scr Mat Min Mat Min Exi Min Mat Fac Low Low Dat Pro Total 3410 | 56 129 269 180 203 250 76 399 683 476 311 104 274 Wait 213 | . . 11 15 6 12 6 77 69 3 14 . . Move 2993 | 44 120 239 145 176 234 70 266 592 462 284 100 261 Hop . | . . . . . . . . . . . . . Pick Up 52 | 6 3 5 4 2 2 . 15 11 . . . 4 Fast Attach 16 | 6 3 1 . . . . 4 1 . 1 . . Attach 8 | . . 2 3 . . . 1 2 . . . . Detach 1 | . . . . . . . . 1 . . . . Swap 29 | . . 2 2 2 2 . 10 1 2 3 2 3 Drop 38 | . 3 6 2 1 . . 17 5 . . 2 2 Fire 53 | . . 3 9 16 . . 9 1 3 8 . 4 Melee 6 | . . . . . . . . . 6 . . . Ram . | . . . . . . . . . . . . . Kick . | . . . . . . . . . . . . . Crush . | . . . . . . . . . . . . . Escape Stasis . | . . . . . . . . . . . . . Rewire 1 | . . . . . . . . . . 1 . . Trap . | . . . . . . . . . . . . . Miscellaneous . | . . . . . . . . . . . . . Route ------- -11/Scrapyard -10/Materials -10/Mines -9/Materials (discovered 2 exits: *Min x2) -9/Mines (discovered 2 exits: *Mat / *Exi) -9/Exiles -8/Mines -8/Materials -7/Factory (discovered 3 exits: *Fac / *Sto / *Low) -7/Lower Caves -7/Lower Caves (discovered 2 exits: *Fac / *Dat) -7/Data Miner -6/Proximity Caves (discovered 1 exit: Fac) History --------- Turn | Location | Event 18 | -11/Scrapyard | Discovered new exit (range 15) 55 | -11/Scrapyard | Entered Materials 69 | -10/Materials | Discovered new exit (range 16) 173 | -10/Materials | Entered Mines 180 | -10/Mines | Met a Derelict who couldn't figure out how to use a Trap Extractor 307 | -10/Mines | Build established: Mutant 459 | -10/Mines | Discovered new exit (range 7) 468 | -10/Mines | Entered Materials 468 | -9/Materials | Evolved 2 slots: Propulsion x1, Utility x1 520 | -9/Materials | Identified exit to Mines 695 | -9/Materials | Entered Mines 881 | -9/Mines | Discovered new exit (range 5) 960 | -9/Mines | Deemed a non-threat by the Exiles lab entrance 960 | -9/Mines | Discovered new exit (range 5) 966 | -9/Mines | Entered Exiles 1000 | -9/Exiles | Met 8R-AWN 1018 | -9/Exiles | Met EX-HEX 1055 | -9/Exiles | Met EX-BIN 1077 | -9/Exiles | Aligned with FarCom system 1078 | -9/Exiles | Given EX-Vault access code 1107 | -9/Exiles | Opened EX-Vault 1115 | -9/Exiles | Found Latent Energy Streamer 1158 | -9/Exiles | Warned to stay clear of 0b10 Research branches 1181 | -9/Exiles | Exiles lab attacked by MAIN.C 1224 | -9/Exiles | Learned location of Zion (-6) 1285 | -9/Exiles | Discovered new exit (range 14) 1312 | -9/Exiles | Left Exiles lab with Latent Energy Streamer 1312 | -9/Exiles | Entered Mines 1377 | -8/Mines | Discovered new exit (range 10) 1402 | -8/Mines | Entered Materials 1402 | -8/Materials | Evolved 2 slots: Propulsion x1, Utility x1 1480 | -8/Materials | Repaired Carbon-fiber Leg 1799 | -8/Materials | Discovered new exit (range 16) 1860 | -8/Materials | Entered Factory 1860 | -7/Factory | Evolved 2 slots: Propulsion x1, Utility x1 1866 | -7/Factory | Identified exit to DSF 1924 | -7/Factory | Discovered new exit (range 13) 1978 | -7/Factory | Identified exit to Factory 2035 | -7/Factory | Discovered new exit (range 16) 2040 | -7/Factory | Identified exit to Storage 2152 | -7/Factory | Discovered new exit (range 4) 2153 | -7/Factory | Identified exit to Lower Caves 2153 | -7/Factory | Entered Lower Caves 2328 | -7/Lower Caves | Learned location of Extension (-4) 2332 | -7/Lower Caves | Spotted B-75 Beast 2339 | -7/Lower Caves | Discovered new exit (range 12) 2343 | -7/Lower Caves | Identified exit to Lower Caves 2343 | -7/Lower Caves | Entered another Lower Caves area 2371 | -7/Lower Caves | Encountered a Warlord checkpoint 2371 | -7/Lower Caves | Learned Factory emergency access door positions 2371 | -7/Lower Caves | Discovered exit to Factory (range 11) 2404 | -7/Lower Caves | Learned Factory terminal intel 2485 | -7/Lower Caves | Discovered new exit (range 6) 2488 | -7/Lower Caves | Identified exit to Data Miner 2488 | -7/Lower Caves | Entered Data Miner 2488 | -7/Data Miner | Discovered new exit (range 6) 2491 | -7/Data Miner | Identified exit to Proximity Caves 2496 | -7/Data Miner | Met Data Miner 2504 | -7/Data Miner | Learned location of Section 7 (-3) 2504 | -7/Data Miner | Acquired the access code to Warlord's prototype stash 2512 | -7/Data Miner | Received God Mode back door access code from Data Miner 2526 | -7/Data Miner | Entered Proximity Caves 2586 | -6/Proximity Caves | Attracted the attention of an 0b10 checkpoint 2604 | -6/Proximity Caves | Escorted by Enhanced Grunt 2639 | -6/Proximity Caves | Self-destructed Last Messages --------------- 02532_ Found 17 Matter. 02533_ Acquired Imp. Light Armor Plating. 02539_ Acquired 16 matter. 02566_ Acquired derelict log, extracted data. 02567_ Searching scrap... 02567_ Found Arm. Huge Wheel. 02567_ Found Imp. Hacking Suite. 02567_ Found Hardlight Generator. 02567_ Found Imp. Hacking Suite. 02567_ Found 27 Matter. 02567_ Dropped Med. Armor Plating. 02568_ Acquired Imp. Hacking Suite. 02570_ Dropped Hcp. Storage Unit. 02570_ Acquired Imp. Hacking Suite. 02577_ Critical hit (Burn: +37). 02586_ Y-54 Guardian: "INTERCEPTING UNREGISTERED DERELICT." 02598_ Critical hit (Burn: +37). 02604_ Enhanced Grunt: "Protecting LRC-V3." 02636_ Critical hit (Burn: +37). 02638_ Lgt. Nuclear Core destroyed. Map ----- +----------------------------------------------------+ | ???### #??????# #???????????? | | ????## #????### #???????????? | | ?????## #??### ## ### #???????????? | | ??????# ## ##### ## #####???????????? | | ??????# ## ### ##?????????????? | | ??????#= ## ### ####??????????? | | #######%!## ### ##?????????? | | ?# ! !## ##????????? | | ?# ## #????????? | | ?# #### # #????????? | | ?# #??## #### # ##???????? | | ## #???### ##??#Y # #???????? | | # #?????# #???# ## ##??????? | | ## ##????## ##???# ###### #??????? | | ?# #?????## ###??# #????# ##??????? | | ## ##?????## ##?## ###### ##??????? | | # #??????# #### #??????? | | ## #??????# ## #??????? | | ?## ##??????# ### ##??????? | | ### #???????# ##??###???????? | | #??????# #?????????????? | | ##??????# #### #######?????????????? | | #???????# ##??# g ##???????????????????? | | #??????# #???#gg ###???###????????????? | | #?????# #???# ##?## #????????????? | | # #???# #??## @ ### ##???????????? | | # #??# #??# ### ###?????????? | | # #??# #??# ##?# ##????????? | | # ##??# ##??####??###### #????????? | | ## ##???## ##??????????????### #????????? | | ?####?????### #??????????????????# ##????????? | | ????????????### ???????????????????## #?????????? | | ??????????????##????????????????????####?????????? | | ?????????????????????????????????????????????????? | | ?????????????????????????????????????????????????? | | ?????????????????????????????????????????????????? | | ?????????????????????????????????????????????????? | | ?????????????????????????????????????????????????? | | ?????????????????????????????????????????????????? | | ?????????????????????????????????????????????????? | | ?????????????????????????????????????????????????? | | ?????????????????????????????????????????????????? | | ?????????????????????????????????????????????????? | | ?????????????????????????????????????????????????? | | ?????????????????????????????????????????????????? | | ?????????????????????????????????????????????????? | | ?????????????????????????????????????????????????? | | ?????????????????????????????????????????????????? | | | | | +----------------------------------------------------+ Best States ------------- Heat Dissipation 48 Energy Generation 14 Energy Capacity 275 Matter Stores 300 Matter Capacity 300 Sight Range 16 Terrain Scan Density 10 Armor Coverage 375 Evasion (%) 58 Offensive Hacking 11 Trap Extractor Capacity 6 Item Schematics ----------------- Hcp. Storage Unit | -10/Materials | Hacked Combat Drone Bay | -7/Data Miner | Free Biomechanical Wings | -7/Data Miner | Free Lgt. Regenerative Plating | -7/Data Miner | Free Exp. Utility Shielding | -7/Data Miner | Free Field Propulsion Drive | -7/Data Miner | Free Antimatter Cannon | -7/Data Miner | Free Point Defense System | -7/Data Miner | Free Wave Gun | -7/Data Miner | Free Power Sword | -7/Data Miner | Free Imp. Force Booster | -7/Data Miner | Free Robot Schematics ------------------ X-62 Marksman | -7/Data Miner | Free O-24 Administrator | -7/Data Miner | Free W-25 Informer | -7/Data Miner | Free S-27 Virus | -7/Data Miner | Free B-48 Gladiator | -7/Data Miner | Free B-60 Warrior | -7/Data Miner | Free Fabricated ------------ Nothing Alien Tech Used ----------------- None Achievements -------------- None Challenges ------------ None Game ------ Seed SignalActuatorMantle Manual? 0 Play Time 01:05:35 Cumulative 27.0 hours Start 2022.04.25 @ 16:29:02 End 2022.04.26 @ 13:47:45 Sessions 5 Manual Loads 0 Difficulty Rogue Special Mode None Game No. 13 Rogue 13 Adventurer 0 Explorer 0 Win Type - Total 0 Types 0/0/0/0/0/0/0/0/0 Lore% 30 Gallery% 27 Achievement% 27 Wizard Run 0 Options --------- ASCII 0 Keyboard 0 Movement Mouse Keybinds 0 Fullscreen 2 Font 18/TerminusBold Map View 76x50 Tactical HUD 1 Map Filters NONE Filters NONE Steam 1 RUN: 8fafa355-c531-4fb5-8c0a-e7f97c5d7212